fUSD/lending_fUSD_20250107
["ID","MTS","AMOUNT","RATE_DAILY","PERIOD"]
[348028009,1736269855826,-500.0,0.00010141,2]
[348028010,1736269855837,-737.07,0.00010141,2]
[348028011,1736269855848,-500.0,0.00010141,2]
[348028012,1736269855859,-633.14,0.00010141,2]
[348028013,1736269855870,-500.0,0.00010141,2]
[348028014,1736269855881,-929.78,0.00010141,2]
[348028015,1736269855891,-2613.22,0.00010141,2]
[348028016,1736269855908,-500.0,0.00010141,2]
[348028017,1736269855920,-856.34,0.00010141,2]
[348028018,1736269855931,-384.66,0.00010141,2]
[348028019,1736269855942,-500.0,0.00010141,2]
[348028020,1736269855953,-551.19,0.00010141,2]
[348028021,1736269855964,-500.0,0.00010141,2]
[348028022,1736269855975,-500.0,0.00010141,2]
[348028023,1736269855987,-500.0,0.00010141,2]
[348028024,1736269855998,-500.0,0.00010141,2]
[348028025,1736269856009,-500.0,0.00010141,2]
[348028026,1736269856020,-500.0,0.00010141,2]
[348028027,1736269856032,-500.0,0.00010141,2]
[348028028,1736269856043,-500.0,0.00010141,2]
[348028029,1736269856054,-500.0,0.00010141,2]
[348028030,1736269856065,-3266.89,0.00010141,2]
[348028031,1736269856076,-500.0,0.00010141,2]
[348028032,1736269856087,-500.0,0.00010141,2]
[348028033,1736269856098,-500.0,0.00010141,2]
[348028034,1736269856109,-500.0,0.00010141,2]
[348028035,1736269856121,-500.0,0.00010141,2]
[348028036,1736269856131,-500.0,0.00010141,2]
[348028037,1736269856142,-500.0,0.00010141,2]
[348028038,1736269856155,-500.0,0.00010141,2]
[348028039,1736269856168,-2124.35,0.00010141,2]
[348028040,1736269856179,-2232.77,0.00010141,2]
[348028041,1736269856192,-500.0,0.00010141,2]
[348028042,1736269856203,-500.0,0.00010141,2]
[348028043,1736269856214,-500.0,0.00010141,2]
[348028044,1736269856225,-3454.34,0.00010141,2]
[348028045,1736269856237,-500.0,0.00010141,2]
[348028046,1736269856249,-2560.79,0.00010141,2]
[348028047,1736269856602,-557.96,0.00010141,2]
[348028048,1736269856634,-1451.23,0.00010141,2]
[348028049,1736269856647,-576.67,0.00010141,2]
[348028050,1736269856661,-500.0,0.00010141,2]
[348028051,1736269856671,-500.0,0.00010141,2]
[348028052,1736269856681,-1488.01,0.00010141,2]
[348028053,1736269856691,-500.0,0.00010141,2]
[348028054,1736269856700,-500.0,0.00010141,2]
[348028055,1736269856710,-699.38,0.00010141,2]
[348028056,1736269856719,-500.0,0.00010141,2]
[348028057,1736269856729,-568.01,0.00010141,2]
[348028058,1736269856738,-500.0,0.00010141,2]
[348028059,1736269856748,-675.82,0.00010141,2]
[348028060,1736269856758,-500.0,0.00010141,2]
[348028061,1736269856768,-500.0,0.00010141,2]
[348028062,1736269856777,-421.42505306,0.00010141,2]
[348028063,1736269856787,-500.0,0.00010141,2]
[348028064,1736269856796,-500.0,0.00010141,2]
[348028065,1736269856805,-500.0,0.00010141,2]
[348028066,1736269856815,-500.0,0.00010141,2]
[348028067,1736269856825,-500.0,0.00010141,2]
[348028068,1736269856835,-500.0,0.00010141,2]
[348028069,1736269856844,-908.6,0.00010141,2]
[348028070,1736269856854,-500.0,0.00010141,2]
[348028071,1736269856864,-500.0,0.00010141,2]
[348028072,1736269856873,-500.0,0.00010141,2]
[348028073,1736269856883,-500.0,0.00010141,2]
[348028074,1736269856892,-509.15,0.00010141,2]
[348028075,1736269856903,-500.0,0.00010141,2]
[348028076,1736269856912,-500.0,0.00010141,2]
[348028077,1736269856922,-569.58,0.00010141,2]
[348028078,1736269856931,-500.0,0.00010141,2]
[348028079,1736269856941,-500.0,0.00010141,2]
[348028080,1736269856950,-601.29,0.00010141,2]
[348028081,1736269856960,-500.0,0.00010141,2]
[348028082,1736269856970,-735.64,0.00010141,2]
[348028083,1736269856979,-500.0,0.00010142,2]
[348028084,1736269856989,-500.0,0.00010142,2]
[348028085,1736269856998,-500.0,0.00010142,2]
[348028086,1736269857007,-500.0,0.00010142,2]
[348028087,1736269857017,-500.0,0.00010142,2]
[348028088,1736269857026,-500.0,0.00010142,2]
[348028089,1736269857035,-500.0,0.00010142,2]
[348028090,1736269857045,-500.0,0.00010142,2]
[348028091,1736269857055,-500.0,0.00010142,2]
[348028092,1736269857065,-500.0,0.00010142,2]
[348028093,1736269857074,-500.0,0.00010142,2]
[348028094,1736269857083,-500.0,0.00010142,2]
[348028095,1736269857093,-500.0,0.00010142,2]
[348028096,1736269857103,-500.0,0.00010142,2]
[348028097,1736269857112,-1093.7,0.00010142,2]
[348028098,1736269857121,-500.0,0.00010142,2]
[348028099,1736269857131,-500.0,0.00010142,2]
[348028100,1736269857140,-1413.47,0.00010142,2]
[348028101,1736269857150,-1288.12,0.00010142,2]
[348028102,1736269857160,-1185.98,0.00010142,2]
[348028103,1736269857171,-2119.32,0.00010142,2]
[348028104,1736269857181,-1535.33,0.00010142,2]
[348028105,1736269857191,-687.94,0.00010142,2]
[348028106,1736269857201,-3857.08,0.00010142,2]
[348028107,1736269857211,-868.61,0.00010142,2]
[348028108,1736269857221,-1125.63,0.00010142,2]
[348028109,1736269857231,-2371.71,0.00010142,2]
[348028110,1736269857241,-1450.55,0.00010142,2]
[348028111,1736269857251,-915.4,0.00010142,2]
[348028112,1736269857262,-575.38,0.00010142,2]
[348028113,1736269857271,-728.18,0.00010142,2]
[348028114,1736269857280,-150.0,0.00010312,2]
[348028115,1736269857290,-150.0,0.00010364,2]
[348028116,1736269857301,-1129.65,0.00010399,2]
[348028117,1736269857311,-1589.61,0.00010408,2]
[348028118,1736269857323,-3923.32,0.00010408,2]
[348028119,1736269857332,-977.41,0.00010408,2]
[348028120,1736269857341,-807.65,0.00010408,2]
[348028121,1736269857351,-1479.34,0.00010408,2]
[348028122,1736269857361,-500.0,0.00010408,2]
[348028123,1736269857370,-841.01,0.00010408,2]
[348028124,1736269857379,-792.75,0.00010408,2]
[348028125,1736269857389,-500.0,0.00010408,2]
[348028126,1736269857400,-1545.97,0.00010408,2]
[348028127,1736269857409,-1000.0,0.00010408,2]
[348028128,1736269857419,-1022.36,0.00010408,2]
[348028129,1736269857428,-644.04,0.00010408,2]
[348028130,1736269857438,-1768.42,0.00010408,2]
[348028131,1736269857449,-1232.84,0.00010408,2]
[348028132,1736269857460,-979.19,0.00010411,2]
[348028133,1736269857470,-1594.15,0.00010414,2]
[348028134,1736269857479,-500.0,0.00010414,2]
[348028135,1736269857490,-1240.47,0.00010414,2]
[348028136,1736269857499,-741.54,0.00010414,2]
[348028137,1736269857508,-1269.06,0.00010414,2]
[348028138,1736269857518,-3340.23,0.00010414,2]
[348028139,1736269857528,-522.9,0.00010414,2]
[348028140,1736269857537,-572.51,0.00010414,2]
[348028141,1736269857547,-500.0,0.00010414,2]
[348028142,1736269857558,-2078.06,0.00010414,2]
[348028143,1736269857567,-500.0,0.00010414,2]
[348028144,1736269857577,-2143.6,0.00010414,2]
[348028145,1736269857586,-500.0,0.00010414,2]
[348028146,1736269857597,-428.04,0.00010414,2]
[348028147,1736269857606,-1309.19,0.00010414,2]
[348028148,1736269857616,-580.33,0.00010414,2]
[348028149,1736269857626,-1631.23,0.00010414,2]
[348028150,1736269857635,-1380.0,0.00010414,2]
[348028151,1736269857644,-1027.85,0.00010414,2]
[348028152,1736269857655,-532.32,0.00010414,2]
[348028153,1736269857664,-1096.67,0.00010414,2]
[348028154,1736269857674,-1137.79,0.00010414,2]
[348028155,1736269857683,-875.8,0.00010414,2]
[348028156,1736269857693,-500.0,0.00010414,2]
[348028157,1736269857702,-502.1,0.00010414,2]
[348028158,1736269857712,-500.0,0.00010414,2]
[348028159,1736269857721,-500.0,0.00010415,2]
[348028160,1736269857731,-500.0,0.00010415,2]
[348028161,1736269857741,-500.0,0.00010415,2]
[348028162,1736269857751,-500.0,0.00010415,2]
[348028163,1736269857760,-500.0,0.00010415,2]
[348028164,1736269857770,-500.0,0.00010415,2]
[348028165,1736269857779,-500.0,0.00010415,2]
[348028166,1736269857789,-500.0,0.00010415,2]
[348028167,1736269857798,-500.0,0.00010415,2]
[348028168,1736269857808,-500.0,0.00010415,2]
[348028169,1736269857818,-500.0,0.00010415,2]
[348028170,1736269857827,-500.0,0.00010415,2]
[348028171,1736269857837,-500.0,0.00010415,2]
[348028172,1736269857847,-500.0,0.00010415,2]
[348028173,1736269857856,-500.0,0.00010415,2]
[348028174,1736269857866,-500.0,0.00010415,2]
[348028175,1736269857875,-500.0,0.00010415,2]
[348028176,1736269857885,-500.0,0.00010415,2]
[348028177,1736269857893,-267.68273819,0.00010415,2]
[348028178,1736269857904,-500.0,0.00010415,2]
[348028179,1736269857914,-500.0,0.00010415,2]
[348028180,1736269857924,-500.0,0.00010415,2]
[348028181,1736269857934,-500.0,0.00010415,2]
[348028182,1736269857943,-500.0,0.00010415,2]
[348028183,1736269857952,-500.0,0.00010415,2]
[348028184,1736269857962,-500.0,0.00010415,2]
[348028185,1736269857971,-500.0,0.00010415,2]
[348028186,1736269857981,-500.0,0.00010415,2]
[348028187,1736269857991,-500.0,0.00010415,2]
[348028188,1736269858000,-500.0,0.00010415,2]
[348028189,1736269858010,-500.0,0.00010415,2]
[348028190,1736269858020,-240.25440531,0.00010415,2]
[348028191,1736269858030,-500.0,0.00010415,2]
[348028192,1736269858040,-500.0,0.00010415,2]
[348028193,1736269858050,-500.0,0.00010415,2]
[348028194,1736269858060,-500.0,0.00010415,2]
[348028195,1736269858070,-500.0,0.00010415,2]
[348028196,1736269858079,-500.0,0.00010415,2]
[348028197,1736269858089,-500.0,0.00010415,2]
[348028198,1736269858100,-500.0,0.00010415,2]
[348028199,1736269858109,-500.0,0.00010415,2]
[348028200,1736269858119,-580.43,0.00010415,2]
[348028201,1736269858129,-500.0,0.00010415,2]
[348028202,1736269858138,-500.0,0.00010415,2]
[348028203,1736269858150,-500.0,0.00010415,2]
[348028204,1736269858162,-500.0,0.00010415,2]
[348028205,1736269858174,-500.0,0.00010415,2]
[348028206,1736269858183,-500.0,0.00010415,2]
[348028207,1736269858194,-500.0,0.00010415,2]
[348028208,1736269858203,-500.0,0.00010415,2]
[348028209,1736269858213,-500.0,0.00010415,2]
[348028210,1736269858223,-568.34,0.00010415,2]
[348028211,1736269858232,-500.0,0.00010415,2]
[348028212,1736269858242,-500.0,0.00010415,2]
[348028213,1736269858252,-500.0,0.00010415,2]
[348028214,1736269858261,-500.0,0.00010415,2]
[348028215,1736269858271,-500.0,0.00010415,2]
[348028216,1736269858281,-500.0,0.00010415,2]
[348028217,1736269858290,-607.74,0.00010415,2]
[348028218,1736269858300,-500.0,0.00010415,2]
[348028219,1736269858310,-500.0,0.00010415,2]
[348028220,1736269858319,-500.0,0.00010415,2]
[348028221,1736269858329,-500.0,0.00010415,2]
[348028222,1736269858339,-500.0,0.00010415,2]
[348028223,1736269858348,-500.0,0.00010415,2]
[348028224,1736269858358,-1144.98,0.00010415,2]
[348028225,1736269858367,-546.89,0.00010415,2]
[348028226,1736269858377,-500.0,0.00010415,2]
[348028227,1736269858386,-500.0,0.00010415,2]
[348028228,1736269858396,-590.87,0.00010415,2]
[348028229,1736269858407,-500.0,0.00010415,2]
[348028230,1736269858417,-500.0,0.00010415,2]
[348028231,1736269858427,-500.0,0.00010415,2]
[348028232,1736269858438,-500.0,0.00010415,2]
[348028233,1736269858448,-500.0,0.00010415,2]
[348028234,1736269858458,-583.71227079,0.00010415,2]
[348028235,1736269858468,-802.76,0.00010415,2]
[348028236,1736269858478,-500.0,0.00010415,2]
[348028237,1736269858488,-2051.12,0.00010415,2]
[348028238,1736269858497,-500.0,0.00010415,2]
[348028239,1736269858507,-500.0,0.00010415,2]
[348028240,1736269858517,-500.0,0.00010415,2]
[348028241,1736269858526,-565.88,0.00010415,2]
[348028242,1736269858537,-500.0,0.00010415,2]
[348028243,1736269858547,-500.0,0.00010415,2]
[348028244,1736269858557,-500.0,0.00010415,2]
[348028245,1736269858567,-500.0,0.00010415,2]
[348028246,1736269858577,-500.0,0.00010415,2]
[348028247,1736269858587,-500.0,0.00010415,2]
[348028248,1736269858597,-539.57,0.00010415,2]
[348028249,1736269858608,-500.0,0.00010415,2]
[348028250,1736269858618,-500.0,0.00010415,2]
[348028251,1736269858630,-1253.8,0.00010415,2]
[348028252,1736269858640,-500.0,0.00010415,2]
[348028253,1736269858650,-500.0,0.00010415,2]
[348028254,1736269858660,-500.0,0.00010415,2]
[348028255,1736269858670,-627.9,0.00010415,2]
[348028256,1736269858679,-500.0,0.00010415,2]
[348028257,1736269858689,-500.0,0.00010415,2]
[348028258,1736269858699,-500.0,0.00010415,2]
[348028259,1736269858709,-500.0,0.00010415,2]
[348028260,1736269858719,-500.0,0.00010415,2]
[348028261,1736269858728,-500.0,0.00010415,2]
[348028262,1736269858738,-500.0,0.00010415,2]
[348028263,1736269858748,-500.0,0.00010415,2]
[348028264,1736269858758,-777.41,0.00010415,2]
[348028265,1736269858767,-500.0,0.00010415,2]
[348028266,1736269858776,-500.0,0.00010415,2]
[348028267,1736269858786,-2341.36,0.00010415,2]
[348028268,1736269858796,-500.0,0.00010415,2]
[348028269,1736269858806,-154.745445,0.00010415,2]
[348028270,1736269858816,-514.63,0.00010415,2]
[348028271,1736269858825,-500.0,0.00010415,2]
[348028272,1736269858835,-500.0,0.00010415,2]
[348028273,1736269858845,-500.0,0.00010415,2]
[348028274,1736269858857,-1033.9,0.00010415,2]
[348028275,1736269858867,-500.0,0.00010415,2]
[348028276,1736269858877,-500.0,0.00010415,2]
[348028277,1736269858887,-153.380151,0.00010415,2]
[348028278,1736269858896,-500.0,0.00010415,2]
[348028279,1736269858908,-1531.0,0.00010415,2]
[348028280,1736269858919,-500.0,0.00010415,2]
[348028281,1736269858928,-515.4,0.00010415,2]
[348028282,1736269858939,-500.0,0.00010415,2]
[348028283,1736269858949,-539.95,0.00010415,2]
[348028284,1736269858959,-503.94,0.00010415,2]
[348028285,1736269858969,-500.0,0.00010415,2]
[348028286,1736269858979,-500.0,0.00010415,2]
[348028287,1736269858989,-1283.23,0.00010415,2]
[348028288,1736269858999,-4687.05,0.00010415,2]
[348028289,1736269859009,-581.8,0.00010415,2]
[348028290,1736269859019,-500.0,0.00010415,2]
[348028291,1736269859029,-500.56,0.00010415,2]
[348028292,1736269859040,-500.0,0.00010415,2]
[348028293,1736269859050,-737.07,0.00010415,2]
[348028294,1736269859060,-500.0,0.00010415,2]
[348028295,1736269859070,-633.14,0.00010415,2]
[348028296,1736269859080,-500.0,0.00010415,2]
[348028297,1736269859090,-929.78,0.00010415,2]
[348028298,1736269859099,-2613.22,0.00010415,2]
[348028299,1736269859109,-500.0,0.00010415,2]
[348028300,1736269859120,-856.34,0.00010415,2]
[348028301,1736269859130,-481.51981543,0.00010415,2]
[348028302,1736269859139,-551.19,0.00010415,2]
[348028303,1736269859151,-500.0,0.00010415,2]
[348028304,1736269859166,-500.0,0.00010415,2]
[348028305,1736269859176,-500.0,0.00010415,2]
[348028306,1736269859186,-500.0,0.00010415,2]
[348028307,1736269859197,-500.0,0.00010415,2]
[348028308,1736269859208,-500.0,0.00010415,2]
[348028309,1736269859219,-500.0,0.00010415,2]
[348028310,1736269859229,-500.0,0.00010415,2]
[348028311,1736269859239,-500.0,0.00010415,2]
[348028312,1736269859251,-3266.89,0.00010415,2]
[348028313,1736269859261,-500.0,0.00010415,2]
[348028314,1736269859272,-500.0,0.00010415,2]
[348028315,1736269859282,-500.0,0.00010415,2]
[348028316,1736269859292,-597.18639122,0.00010415,2]
[348028317,1736269859302,-500.0,0.00010415,2]
[348028318,1736269859312,-500.0,0.00010415,2]
[348028319,1736269859322,-275.50417877,0.00010415,2]
[348028320,1736269859333,-500.0,0.00010415,2]
[348028321,1736269859344,-2124.35,0.00010415,2]
[348028322,1736269859354,-2232.77,0.00010415,2]
[348028323,1736269859364,-500.0,0.00010415,2]
[348028324,1736269859374,-500.0,0.00010415,2]
[348028325,1736269859384,-500.0,0.00010415,2]
[348028326,1736269859395,-3454.34,0.00010415,2]
[348028327,1736269859407,-500.0,0.00010415,2]
[348028328,1736269859417,-2560.79,0.00010415,2]
[348028329,1736269859426,-557.96,0.00010415,2]
[348028330,1736269859435,-1451.23,0.00010415,2]
[348028331,1736269859445,-576.67,0.00010415,2]
[348028332,1736269859455,-500.0,0.00010415,2]
[348028333,1736269859464,-500.0,0.00010415,2]
[348028334,1736269859474,-1488.01,0.00010415,2]
[348028335,1736269859483,-500.0,0.00010415,2]
[348028336,1736269859493,-500.0,0.00010415,2]
[348028337,1736269859503,-699.38,0.00010415,2]
[348028338,1736269859513,-500.0,0.00010415,2]
[348028339,1736269859524,-568.01,0.00010415,2]
[348028340,1736269859534,-500.0,0.00010415,2]
[348028341,1736269859544,-675.82,0.00010415,2]
[348028342,1736269859555,-500.0,0.00010415,2]
[348028343,1736269859566,-188.42,0.00010415,2]
[348028344,1736269859575,-500.0,0.00010415,2]
[348028345,1736269859586,-500.0,0.00010415,2]
[348028346,1736269859597,-568.61308847,0.00010415,2]
[348028347,1736269859607,-500.0,0.00010415,2]
[348028348,1736269859617,-500.0,0.00010415,2]
[348028349,1736269859626,-500.0,0.00010415,2]
[348028350,1736269859636,-908.6,0.00010415,2]
[348028351,1736269859647,-500.0,0.00010415,2]
[348028352,1736269859659,-500.0,0.00010415,2]
[348028353,1736269859670,-500.0,0.00010415,2]
[348028354,1736269859681,-500.0,0.00010415,2]
[348028355,1736269859692,-509.15,0.00010415,2]
[348028356,1736269859880,-500.0,0.00010415,2]
[348028357,1736269859891,-500.0,0.00010415,2]
[348028358,1736269859902,-569.58,0.00010415,2]
[348028359,1736269859912,-500.0,0.00010415,2]
[348028360,1736269859922,-500.0,0.00010415,2]
[348028361,1736269859932,-601.29,0.00010415,2]
[348028362,1736269859942,-500.0,0.00010415,2]
[348028363,1736269859951,-735.64,0.00010415,2]
[348028364,1736269859961,-500.0,0.00010416,2]
[348028365,1736269859971,-500.0,0.00010416,2]
[348028366,1736269859980,-500.0,0.00010416,2]
[348028367,1736269859990,-500.0,0.00010416,2]
[348028368,1736269860000,-500.0,0.00010416,2]
[348028369,1736269860010,-500.0,0.00010416,2]
[348028370,1736269860021,-164.61948058,0.00010416,2]
[348028371,1736269860032,-500.0,0.00010416,2]
[348028372,1736269860042,-500.0,0.00010416,2]
[348028373,1736269860052,-500.0,0.00010416,2]
[348028374,1736269860062,-500.0,0.00010416,2]
[348028375,1736269860072,-500.0,0.00010416,2]
[348028376,1736269860082,-500.0,0.00010416,2]
[348028377,1736269860092,-500.0,0.00010416,2]
[348028378,1736269860102,-1093.7,0.00010416,2]
[348028379,1736269860111,-500.0,0.00010416,2]
[348028380,1736269860121,-500.0,0.00010416,2]
[348028381,1736269860131,-1413.47,0.00010416,2]
[348028382,1736269860140,-1288.12,0.00010416,2]
[348028383,1736269860151,-1185.98,0.00010416,2]
[348028384,1736269860161,-2119.32,0.00010416,2]
[348028385,1736269860173,-1535.33,0.00010416,2]
[348028386,1736269860183,-687.94,0.00010416,2]
[348028387,1736269860195,-3857.08,0.00010416,2]
[348028388,1736269860207,-868.61,0.00010416,2]
[348028389,1736269860217,-1125.63,0.00010416,2]
[348028390,1736269860227,-2371.71,0.00010416,2]
[348028391,1736269860238,-1450.55,0.00010416,2]
[348028392,1736269860249,-915.4,0.00010416,2]
[348028393,1736269860259,-575.38,0.00010416,2]
[348028394,1736269860275,-728.18,0.00010416,2]
[348028395,1736269860286,-504.36,0.00010417,2]
[348028396,1736269860296,-150.0,0.00010676,2]
[348028397,1736269860307,-1589.61,0.00010682,2]
[348028398,1736269860319,-3923.32,0.00010682,2]
[348028399,1736269860328,-977.41,0.00010682,2]
[348028400,1736269860339,-807.65,0.00010682,2]
[348028401,1736269860349,-1479.34,0.00010682,2]
[348028402,1736269860359,-500.0,0.00010682,2]
[348028403,1736269860370,-841.01,0.00010682,2]
[348028404,1736269860380,-792.75,0.00010682,2]
[348028405,1736269860390,-500.0,0.00010682,2]
[348028406,1736269860400,-1545.97,0.00010682,2]
[348028407,1736269860409,-1000.0,0.00010682,2]
[348028408,1736269860419,-1022.36,0.00010682,2]
[348028409,1736269860428,-644.04,0.00010682,2]
[348028410,1736269860439,-1768.42,0.00010682,2]
[348028411,1736269860449,-1232.84,0.00010682,2]
[348028412,1736269860460,-1594.15,0.00010688,2]
[348028413,1736269860470,-500.0,0.00010688,2]
[348028414,1736269860480,-1240.47,0.00010688,2]
[348028415,1736269860490,-741.54,0.00010688,2]
[348028416,1736269860500,-1269.06,0.00010688,2]
[348028417,1736269860509,-3340.23,0.00010688,2]
[348028418,1736269860519,-522.9,0.00010688,2]
[348028419,1736269860530,-572.51,0.00010688,2]
[348028420,1736269860541,-500.0,0.00010688,2]
[348028421,1736269860551,-2078.06,0.00010688,2]
[348028422,1736269860561,-500.0,0.00010688,2]
[348028423,1736269860572,-2143.6,0.00010688,2]
[348028424,1736269860582,-500.0,0.00010688,2]
[348028425,1736269860593,-1309.19,0.00010688,2]
[348028426,1736269860602,-580.33,0.00010688,2]
[348028427,1736269860613,-1631.23,0.00010688,2]
[348028428,1736269860624,-1380.0,0.00010688,2]
[348028429,1736269860634,-1027.85,0.00010688,2]
[348028430,1736269860645,-532.32,0.00010688,2]
[348028431,1736269860656,-1096.67,0.00010688,2]
[348028432,1736269860666,-1137.79,0.00010688,2]
[348028433,1736269860675,-875.8,0.00010688,2]
[348028434,1736269860685,-500.0,0.00010688,2]
[348028435,1736269860695,-502.1,0.00010688,2]
[348028436,1736269860705,-500.0,0.00010688,2]
[348028437,1736269860716,-500.0,0.00010689,2]
[348028438,1736269860725,-500.0,0.00010689,2]
[348028439,1736269860735,-500.0,0.00010689,2]
[348028440,1736269860745,-500.0,0.00010689,2]
[348028441,1736269860756,-500.0,0.00010689,2]
[348028442,1736269860766,-500.0,0.00010689,2]
[348028443,1736269860776,-500.0,0.00010689,2]
[348028444,1736269860786,-500.0,0.00010689,2]
[348028445,1736269860796,-500.0,0.00010689,2]
[348028446,1736269860806,-500.0,0.00010689,2]
[348028447,1736269860815,-500.0,0.00010689,2]
[348028448,1736269860825,-500.0,0.00010689,2]
[348028449,1736269860836,-500.0,0.00010689,2]
[348028450,1736269860846,-500.0,0.00010689,2]
[348028451,1736269860855,-500.0,0.00010689,2]
[348028452,1736269860866,-500.0,0.00010689,2]
[348028453,1736269860883,-394.00234872,0.00010689,2]
[348028454,1736269861102,-500.0,0.00010689,2]
[348028455,1736269861112,-500.0,0.00010689,2]
[348028456,1736269861127,-500.0,0.00010689,2]
[348028457,1736269861137,-500.0,0.00010689,2]
[348028458,1736269861147,-500.0,0.00010689,2]
[348028459,1736269861159,-500.0,0.00010689,2]
[348028460,1736269861172,-500.0,0.00010689,2]
[348028461,1736269861182,-500.0,0.00010689,2]
[348028462,1736269861195,-500.0,0.00010689,2]
[348028463,1736269861207,-500.0,0.00010689,2]
[348028464,1736269861219,-500.0,0.00010689,2]
[348028465,1736269861229,-500.0,0.00010689,2]
[348028466,1736269861241,-500.0,0.00010689,2]
[348028467,1736269861251,-500.0,0.00010689,2]
[348028468,1736269861261,-201.21175698,0.00010689,2]
[348028469,1736269861272,-500.0,0.00010689,2]
[348028470,1736269861283,-500.0,0.00010689,2]
[348028471,1736269861293,-500.0,0.00010689,2]
[348028472,1736269861303,-500.0,0.00010689,2]
[348028473,1736269861313,-500.0,0.00010689,2]
[348028474,1736269861323,-500.0,0.00010689,2]
[348028475,1736269861334,-500.0,0.00010689,2]
[348028476,1736269861344,-580.43,0.00010689,2]
[348028477,1736269861353,-500.0,0.00010689,2]
[348028478,1736269861363,-500.0,0.00010689,2]
[348028479,1736269861373,-500.0,0.00010689,2]
[348028480,1736269861382,-500.0,0.00010689,2]
[348028481,1736269861392,-500.0,0.00010689,2]
[348028482,1736269861401,-500.0,0.00010689,2]
[348028483,1736269861411,-500.0,0.00010689,2]
[348028484,1736269861421,-500.0,0.00010689,2]
[348028485,1736269861431,-500.0,0.00010689,2]
[348028486,1736269861441,-568.34,0.00010689,2]
[348028487,1736269861452,-500.0,0.00010689,2]
[348028488,1736269861462,-500.0,0.00010689,2]
[348028489,1736269861471,-500.0,0.00010689,2]
[348028490,1736269861481,-500.0,0.00010689,2]
[348028491,1736269861491,-500.0,0.00010689,2]
[348028492,1736269861501,-182.15,0.00010689,2]
[348028493,1736269861511,-607.74,0.00010689,2]
[348028494,1736269861521,-500.0,0.00010689,2]
[348028495,1736269861531,-500.0,0.00010689,2]
[348028496,1736269861540,-500.0,0.00010689,2]
[348028497,1736269861550,-500.0,0.00010689,2]
[348028498,1736269861560,-500.0,0.00010689,2]
[348028499,1736269861570,-500.0,0.00010689,2]
[348028500,1736269861579,-1144.98,0.00010689,2]
[348028501,1736269861589,-500.0,0.00010689,2]
[348028502,1736269861599,-546.89,0.00010689,2]
[348028503,1736269861609,-500.0,0.00010689,2]
[348028504,1736269861619,-590.87,0.00010689,2]
[348028505,1736269861629,-500.0,0.00010689,2]
[348028506,1736269861638,-500.0,0.00010689,2]
[348028507,1736269861648,-500.0,0.00010689,2]
[348028508,1736269861660,-500.0,0.00010689,2]